Cogmind - Beta 14 @@@ ROGUE MODE // 2024.09.22 @ 17:02:02 Player: Necroptosis Result: Destroyed by S-10 Pest with Light Assault Rifle Performance ------------- Evolutions (2) 1000 Regions Visited (7) 1400 Robots Destroyed (55) 275 Value Destroyed (1361) 1361 Prototype IDs (39) 780 Alien Tech Used (0) 0 Bonus (445) 445 TOTAL SCORE: 5261 Bonus ------- High Alert Combat Kills 22 Follower Combat Kills 123 Aligned with FarCom 300 Cogmind --------- Core Integrity 0/550 Matter 40/300 Energy 98/100 System Corruption 5% Temperature Cool (0) Movement Core (50) Location -8/Materials Parts ------- > --- POWER (1) -------- (None) > --- PROPULSION (4) --- (None) > --- UTILITY (4) ------ (None) > --- WEAPON (2) ------- (None) > --- INVENTORY (5) ---- Ion Engine Improved Carbon-fiber Leg Armored Huge Wheel Remote Datajack Peak State ------------ > --- POWER ------------ Improved Ion Engine > --- PROPULSION ------- Armored Treads Improved Hover Unit Aerolev Unit Aerolev Unit > --- UTILITY ---------- Medium Storage Unit Improved Signal Interpreter Modified TNC System Shield > --- WEAPON ----------- Improved Assault Rifle Minigun > --- INVENTORY -------- Ion Engine Improved Carbon-fiber Leg Improved Carbon-fiber Leg Armored Huge Wheel Minigun Minigun Rocket Launcher Datajack Remote Datajack [Rating: 37] Favorites ----------- Power Ion Engine Engine Ion Engine Propulsion Light Treads Treads Light Treads Leg Carbon-fiber Leg Hover Unit Aerolev Unit Utility Medium Storage Unit Device Sensor Array Storage Medium Storage Unit Processor Modified TNC Hackware System Shield Weapon Minigun Ballistic Gun Minigun Launcher Rocket Launcher Impact Weapon Hammer Special Melee Weapon Datajack Build | -11 -10 -10 -9 -9 -9 -8 -8 ------- Run | Yrd Mat Min Mat Min Exi Min Mat Slots Evolved 4 | . . . 2 . . . 2 Power . | . . . . . . . . Propulsion 2 | . . . 1 . . . 1 Utility 2 | . . . 1 . . . 1 Weapon . | . . . . . . . . Parts Attached 60 | 7 9 2 4 1 2 1 34 Power 5 | 1 2 . . . . . 2 Engine 5 | 1 2 . . . . . 2 Core . | . . . . . . . . Reactor . | . . . . . . . . Propulsion 21 | 2 1 . 1 . . . 17 Treads 9 | 2 1 . 1 . . . 5 Leg 3 | . . . . . . . 3 Wheel . | . . . . . . . . Hover 9 | . . . . . . . 9 Flight . | . . . . . . . . Utility 12 | 2 2 2 1 1 . 1 3 Device 6 | 1 1 2 1 . . 1 . Storage 2 | 1 1 . . . . . . Processor 3 | . . . . 1 . . 2 Hackware 1 | . . . . . . . 1 Protection . | . . . . . . . . Artifact . | . . . . . . . . Weapon 22 | 2 4 . 2 . 2 . 12 Energy Gun . | . . . . . . . . Energy Cannon . | . . . . . . . . Ballistic Gun 15 | 2 2 . 2 . 1 . 8 Ballistic Cannon . | . . . . . . . . Launcher 4 | . . . . . . . 4 Special Weapon . | . . . . . . . . Impact Weapon 2 | . 2 . . . . . . Slashing Weapon . | . . . . . . . . Piercing Weapon . | . . . . . . . . Special Melee Weapon 1 | . . . . . 1 . . Unidentified Prototypes 3 | . . 1 . . . . 2 Parts Lost 13 | . 2 . . . . . 11 Power 2 | . 1 . . . . . 1 Propulsion 5 | . . . . . . . 5 Utility 4 | . 1 . . . . . 3 Weapon 2 | . . . . . . . 2 Highest Loss Streak 5 | . 2 . . . . . 5 To Critical Strikes . | . . . . . . . . Average Slot Usage (%) 98 | . 99 100 90 100 100 100 95 Engine 10 | . 13 14 11 11 11 11 8 Treads 25 | . 28 28 33 33 33 33 17 Hover 6 | . . . . . . . 15 Device 8 | . 13 14 13 11 11 11 2 Storage 11 | . 14 14 11 11 11 11 8 Processor 9 | . . . . 10 11 11 17 Hackware 2 | . . . . . . . 5 Ballistic Gun 21 | . 27 28 22 22 18 22 17 Peak Build Rating 37 | 9 11 14 16 16 15 15 37 Average Rating 18 | 5 9 8 9 14 14 14 29 On Entrance 10 | . 9 8 8 16 14 15 15 Naked Turns 13 | . . . . . . . 13 Heaviest Build 24 | 14 21 22 23 23 22 22 24 Greatest Support 80 | 40 40 40 60 60 60 60 80 Greatest Overweight (x) 1 | 1 . . . . . . 1 Average Overweight (x) . | . . . . . . . . Largest Inventory Capacity 10 | 8 10 10 10 10 10 10 10 Average Capacity 9 | 7 9 10 10 10 10 10 9 Most Carried 10 | 6 10 10 10 10 10 10 10 Average Carried 9 | 3 8 9 9 9 10 10 9 Final Capacity 10 | 8 10 10 10 10 10 10 5 Final Carried 10 | 6 9 10 10 10 10 10 5 Class Distribution -------------------- 82% | Mutant 16% | Skirmisher Dominant Class ---------------- Mutant | -10/Materials Mutant | -10/Mines Mutant | -9/Materials Mutant | -9/Mines Mutant | -9/Exiles Skirmisher | -8/Mines Mutant | -8/Materials Resources | -11 -10 -10 -9 -9 -9 -8 -8 ----------- Run | Yrd Mat Min Mat Min Exi Min Mat Matter Collected 1610 | 258 254 94 . 125 . 98 781 Remotely . | . . . . . . . . Salvage Created 1478 | 71 212 30 . 95 . 44 1026 Parts 113 | 8 24 5 . 12 . 6 58 Haulers Intercepted 4 | . 1 . . . . . 3 Recyclers Shooed 1 | 1 . . . . . . . Parts Field Recycled . | . . . . . . . . Retrieved Matter . | . . . . . . . . Parts Self-Destructed . | . . . . . . . . Prevented . | . . . . . . . . Kills | -11 -10 -10 -9 -9 -9 -8 -8 ------- Run | Yrd Mat Min Mat Min Exi Min Mat Combat Hostiles Destroyed 39 | . 7 1 . 6 . 3 22 Guns 24 | . 7 1 . 6 . 3 7 AOE 15 | . . . . . . . 15 Classes Destroyed 11 | 1 4 1 . . . . 5 Builder 2 | . 1 . . . . . 1 Tunneler 3 | 3 . . . . . . . Hauler 4 | . 1 . . . . . 3 Recycler 1 | . . . . . . . 1 Watcher 6 | . 2 . . . . . 4 Swarmer 16 | . 7 . . 6 . 3 . Cutter 3 | . . . . . . . 3 Grunt 15 | . . 1 . . . . 14 Brawler 2 | . . . . . . . 2 Sentry 1 | . . . . . . . 1 Specialist 2 | . . . . . . . 2 Best Kill Streak 13 | 3 3 1 . 3 . 3 13 Combat Bots Only 11 | . 3 1 . 3 . 3 11 Max Kills in Single Turn 3 | 1 1 1 . 1 . 1 3 Gunslinging . | . . . . . . . . Exploded 3 | . . . . . . . 3 Melee . | . . . . . . . . Uniques/NPCs Destroyed . | . . . . . . . . Combat | -11 -10 -10 -9 -9 -9 -8 -8 -------- Run | Yrd Mat Min Mat Min Exi Min Mat Hostile Shots Fired 277 | . 63 9 . 18 . 18 169 Missed 93 | . 13 3 . 7 . 5 65 Damage Taken 2573 | . 442 73 . 97 . 99 1862 Core 641 | . 27 42 . 19 . . 553 Absorbed by Shields . | . . . . . . . . Core Remaining (%) 89 | 100 . 72 . . . 95 . Volleys Fired 167 | 7 46 6 . 13 . 7 88 Largest 2 | 2 2 2 . 2 . 2 2 Hottest 50 | 40 40 40 . 50 . 50 50 Shots Fired 299 | 14 92 12 . 26 . 14 141 Gun 266 | 14 92 12 . 26 . 14 108 Cannon . | . . . . . . . . Launcher 33 | . . . . . . . 33 Special . | . . . . . . . . Kinetic 266 | 14 92 12 . 26 . 14 108 Thermal . | . . . . . . . . Explosive 33 | . . . . . . . 33 Electromagnetic . | . . . . . . . . Robot Hit Streak 14 | 2 7 3 . 6 . 4 14 Robot Miss Streak 6 | 2 4 2 . 6 . 4 2 Penetration Max . | . . . . . . . . Secondary Targets 1 | . . . . . . 1 . Max Gunslinging Chain 1 | . . . . . . 1 . Shots Hit Robots 185 | 7 51 7 . 10 5 7 98 Core Hits 97 | 4 17 4 . 6 . 3 63 Critical Kills 1 | 1 . . . . . . . Critical Parts Destroyed 2 | . 1 . . . . . 1 Critical Strikes 3 | 1 1 . . . . . 1 Destroy 3 | 1 1 . . . . . 1 Melee Attacks 7 | . 2 . . . 5 . . Impact 2 | . 2 . . . . . . Slashing . | . . . . . . . . Piercing . | . . . . . . . . Sneak Attacks 5 | . . . . . 5 . . Combat Hostiles . | . . . . . . . . Follow-up Attacks . | . . . . . . . . Damage Inflicted 3931 | 94 530 77 . 177 . 124 2929 Guns 2376 | 94 530 77 . 177 . 124 1374 Cannons . | . . . . . . . . Explosions 1546 | . . . . . . . 1546 Melee . | . . . . . . . . Ramming 9 | . . . . . . . 9 Kinetic 2376 | 94 530 77 . 177 . 124 1374 Thermal . | . . . . . . . . Explosive 1546 | . . . . . . . 1546 Electromagnetic . | . . . . . . . . Impact . | . . . . . . . . Slashing . | . . . . . . . . Piercing . | . . . . . . . . Highest Corruption 5 | . . . . . . . 5 Average Corruption 4 | . . . . . . . 4 Corruption Purged . | . . . . . . . . Corruption Blocked . | . . . . . . . . Effects 1 | . . . . . . . 1 Message Errors 1 | . . . . . . . 1 Overload Shots . | . . . . . . . . Overflow Damage 10 | . . . . . . . 10 Projectiles . | . . . . . . . . Explosions 10 | . . . . . . . 10 Melee . | . . . . . . . . Knockbacks . | . . . . . . . . Impact . | . . . . . . . . Kinetic . | . . . . . . . . Secondary . | . . . . . . . . Self-Inflicted Damage 66 | . . . . . . . 66 Shots 2 | . . . . . . . 2 Rammed 2 | . . . . . . . 2 Targets Rammed 2 | . . . . . . . 2 Kicked . | . . . . . . . . Crushed . | . . . . . . . . Highest Temperature 25 | . 4 9 . 8 . 8 25 Average Temperature 3 | . 1 8 . 3 . 4 4 Received Heat Transfer 411 | . . 33 . . . . 378 Siege Activations . | . . . . . . . . Robots Corrupted . | . . . . . . . . Combat Hostiles . | . . . . . . . . Parts Fried . | . . . . . . . . Impact Corruptions . | . . . . . . . . Robots Melted . | . . . . . . . . Combat Hostiles . | . . . . . . . . Parts Melted 1 | . . . . 1 . . . Heat Transferred . | . . . . . . . . Parts Sabotaged . | . . . . . . . . Parts Stolen . | . . . . . . . . Parts Stripped . | . . . . . . . . Power Chain Reactions . | . . . . . . . . Alert | -11 -10 -10 -9 -9 -9 -8 -8 ------- Run | Yrd Mat Min Mat Min Exi Min Mat Peak Influence 489 | 15 171 149 62 145 . 70 489 Initial 57 | . 9 . 57 . . . 27 Average 65 | 4 60 58 25 32 . 63 82 Maximum Alert Level 2 | . . . . . . . 2 Low Security (%) 96 | 100 100 100 100 100 . 100 90 Level 1 . | . . . . . . . 1 Level 2 3 | . . . . . . . 8 Level 3 . | . . . . . . . . Level 4 . | . . . . . . . . Level 5 . | . . . . . . . . High Security . | . . . . . . . . Max Security . | . . . . . . . . Squads Dispatched 9 | . . . 1 . . . 8 Investigation 3 | . . . . . . . 3 Extermination . | . . . . . . . . Reinforcement 6 | . . . 1 . . . 5 Assault . | . . . . . . . . Garrison . | . . . . . . . . Intercept . | . . . . . . . . Searches Triggered . | . . . . . . . . Construction Impeded . | . . . . . . . . Haulers Reinforced . | . . . . . . . . Active Scanning Responses . | . . . . . . . . Cargo Convoy Interrupts . | . . . . . . . . Stealth | -11 -10 -10 -9 -9 -9 -8 -8 --------- Run | Yrd Mat Min Mat Min Exi Min Mat Distress Signals 2 | . . . . . . . 2 Communications Jammed . | . . . . . . . . Distress Signals . | . . . . . . . . Times Spotted 88 | . 20 7 . 10 . 3 48 Peak Tracking Total 14 | . 4 2 . 4 . 3 14 Tactical Retreats 8 | . 1 . . 2 . . 5 Traps | -11 -10 -10 -9 -9 -9 -8 -8 ------- Run | Yrd Mat Min Mat Min Exi Min Mat Traps Triggered 3 | . 1 . . . . . 2 Indirectly . | . . . . . . . . Trap Hack Attempts . | . . . . . . . . Triggered . | . . . . . . . . Disarmed . | . . . . . . . . Reprogrammed . | . . . . . . . . Reused . | . . . . . . . . Traps Extracted . | . . . . . . . . Installed . | . . . . . . . . Triggered . | . . . . . . . . Machines | -11 -10 -10 -9 -9 -9 -8 -8 ---------- Run | Yrd Mat Min Mat Min Exi Min Mat Machines Disabled 5 | . . . . 3 . . 2 Max in Single Turn 2 | . . . . 2 . . 1 Machines Repaired . | . . . . . . . . Machines Dismantled . | . . . . . . . . Machines Sabotaged . | . . . . . . . . Overloaded Fab Kills . | . . . . . . . . Hacking | -11 -10 -10 -9 -9 -9 -8 -8 --------- Run | Yrd Mat Min Mat Min Exi Min Mat Machines Accessed 21 | . 5 1 3 2 2 . 8 Terminals 15 | . 5 . 3 1 . . 6 Fabricators . | . . . . . . . . Repair Stations . | . . . . . . . . Recycling Units 2 | . . . . . . . 2 Scanalyzers . | . . . . . . . . Garrison Access . | . . . . . . . . Total Hacks 60 | . 18 1 8 4 2 . 27 Successful 32 | . 11 1 4 3 2 . 11 Failed 28 | . 7 . 4 1 . . 16 Catastrophic 3 | . . . 1 . . . 2 Database Lockouts . | . . . . . . . . Manual 30 | . 9 . 8 . 1 . 12 Terminals 49 | . 18 . 8 3 . . 20 Fabricators . | . . . . . . . . Repair Stations . | . . . . . . . . Recycling Units 7 | . . . . . . . 7 Scanalyzers . | . . . . . . . . Garrison Access . | . . . . . . . . Terminal Hacks 16 | . 4 1 2 3 2 . 4 Record 1 | . . . . . 1 . . Prototype ID Bank 1 | . 1 . . . . . . Open Door 2 | . . 1 . 1 . . . Emergency Access Points 1 | . . . . . . . 1 Alert Level 2 | . . . . 2 . . . Unreport Threat 3 | . 1 . 2 . . . . Locate Traps 1 | . 1 . . . . . . Transport Status 1 | . . . . . . . 1 Registered Components 1 | . 1 . . . . . . Zone Layout 2 | . . . . . . . 2 Derelict Proto ID Bank 1 | . . . . . 1 . . Fabricator Hacks . | . . . . . . . . Repair Station Hacks . | . . . . . . . . Recycling Unit Hacks 3 | . . . . . . . 3 Report Inventory 1 | . . . . . . . 1 Retrieve Components 2 | . . . . . . . 2 Scanalyzer . | . . . . . . . . Garrison Access Hacks . | . . . . . . . . Unauthorized Hacks 13 | . 7 . 2 . . . 4 Terminals 13 | . 7 . 2 . . . 4 Assimilate 1 | . . . . . . . 1 Botnet 6 | . 2 . 2 . . . 2 Disrupt 1 | . . . . . . . 1 Skim 5 | . 5 . . . . . . Fabricators . | . . . . . . . . Repair Stations . | . . . . . . . . Recycling Units . | . . . . . . . . Scanalyzers . | . . . . . . . . Garrison Access . | . . . . . . . . Data Cores Recovered . | . . . . . . . . Used . | . . . . . . . . Hacking Detections 17 | . 5 . 3 1 . . 8 Full Trace Events 1 | . . . . . . . 1 Feedback Events . | . . . . . . . . Feedback Blocked . | . . . . . . . . Robot Schematics Acquired . | . . . . . . . . Robots Built . | . . . . . . . . Authchips . | . . . . . . . . Time . | . . . . . . . . Total Robot Build Rating . | . . . . . . . . Part Schematics Acquired . | . . . . . . . . Parts Built . | . . . . . . . . Authchips . | . . . . . . . . Time . | . . . . . . . . Total Part Build Rating . | . . . . . . . . Parts Repaired . | . . . . . . . . Time . | . . . . . . . . Parts Recycled . | . . . . . . . . Recycled Matter . | . . . . . . . . Retrieved Matter . | . . . . . . . . Retrieved Components 15 | . . . . . . . 15 Parts Scanalyzed . | . . . . . . . . Part Schematics Acquired . | . . . . . . . . Parts Damaged . | . . . . . . . . Bothacking | -11 -10 -10 -9 -9 -9 -8 -8 ------------ Run | Yrd Mat Min Mat Min Exi Min Mat Used RIF Installer . | . . . . . . . . Robots Hacked 4 | . . . . . 4 . . Non-combat 2 | . . . . . 2 . . Combat 2 | . . . . . 2 . . Robot Hacks Applied 4 | . . . . . 4 . . parse_system 4 | . . . . . 4 . . Relay Couplers Released . | . . . . . . . . Fabnet Peak Effective % . | . . . . . . . . Robots Rewired . | . . . . . . . . Allies Hacked . | . . . . . . . . Hacks Repelled . | . . . . . . . . Allies | -11 -10 -10 -9 -9 -9 -8 -8 -------- Run | Yrd Mat Min Mat Min Exi Min Mat Total Allies 4 | . . 3 . . . . 1 Largest Group 3 | . . 3 1 1 . . 1 Highest-Rated Group 40 | . . 40 16 16 . . 10 Highest-Rated Ally 16 | . . 16 16 16 . . 10 Total Orders . | . . . . . . . . Ally Attacks 23 | . . 20 . 3 . . . Total Damage 303 | . . 259 . 44 . . . Kills 7 | . . 6 . 1 . . . Allies Corrupted . | . . . . . . . . Allies Melted . | . . . . . . . . Intel | -11 -10 -10 -9 -9 -9 -8 -8 ------- Run | Yrd Mat Min Mat Min Exi Min Mat Robot Analysis Total . | . . . . . . . . Derelict Logs Recovered 3 | . . 3 . . . . . Drone Launches 3 | . . 3 . . . . . Drone Recoveries . | . . . . . . . . Exploration | -11 -10 -10 -9 -9 -9 -8 -8 ------------- Run | Yrd Mat Min Mat Min Exi Min Mat Turns Passed 6059 | 118 1490 670 132 544 393 299 2413 Spaces Moved 3464 | 50 701 382 79 311 239 64 1638 Core 48 | 3 . . . . . . 45 Treads 2211 | 47 701 382 79 311 239 64 388 Legs 12 | . . . . . . . 12 Wheels . | . . . . . . . . Hover 1193 | . . . . . . . 1193 Flight . | . . . . . . . . Fastest Speed 46 | 50 160 160 160 160 160 160 46 Average Speed 126 | 155 160 160 160 160 160 160 88 Slowest Speed 163 | 160 160 160 160 160 160 160 163 Overloaded Moves . | . . . . . . . . Propulsion Burnouts . | . . . . . . . . Robots Hopped . | . . . . . . . . Cave-ins Triggered . | . . . . . . . . Exploration Rate (%) 51 | 6 91 84 13 62 61 21 70 Regions Visited 7 Branch Regions 4 Pre-discovered Areas 2 | . 1 . . . 1 . . Known Exits Taken 6 | . 1 1 1 1 1 1 . Unknown Exits Taken 1 | 1 . . . . . . . Scrap Searched 7 | . . 3 . 3 . 1 . Spaces Dug 14 | . 2 . . . . . 12 Terrain Destroyed 216 | . 2 . . . . . 214 Melee 2 | . 2 . . . . . . Projectile . | . . . . . . . . AOE 214 | . . . . . . . 214 Terrain Rammed . | . . . . . . . . Walls Destroyed . | . . . . . . . . Machines Disabled . | . . . . . . . . Actions | -11 -10 -10 -9 -9 -9 -8 -8 --------- Run | Yrd Mat Min Mat Min Exi Min Mat Total 4877 | 74 985 431 87 340 247 250 2463 Wait 1113 | 5 212 33 . 8 . 178 677 Move 3457 | 49 700 381 78 310 238 63 1638 Hop . | . . . . . . . . Pick Up 30 | 6 9 2 2 4 1 . 6 Fast Attach 17 | 7 . 2 1 . . 1 6 Attach 10 | . 2 . 1 1 . . 6 Detach 2 | . . . . . . . 2 Swap 33 | . 7 . 2 . 2 . 22 Drop 35 | . 7 3 3 4 1 1 16 Fire 167 | 7 46 6 . 13 . 7 88 Melee 7 | . 2 . . . 5 . . Ram 2 | . . . . . . . 2 Kick . | . . . . . . . . Crush . | . . . . . . . . Escape Stasis . | . . . . . . . . Rewire 4 | . . 4 . . . . . Trap . | . . . . . . . . Miscellaneous . | . . . . . . . . Route ------- -11/Scrapyard -10/Materials (discovered 5 exits: *Mat x3 / *Min / Sub) -10/Mines (discovered 2 exits: *Mat x2) -9/Materials (discovered 3 exits: Mat / *Min x2) -9/Mines -9/Exiles -8/Mines -8/Materials (discovered 4 exits: *Fac x2 / *Sto x2) History --------- Turn | Location | Event 4 | -11/Scrapyard | Discovered new exit (range 16) 119 | -11/Scrapyard | Entered Materials 313 | -10/Materials | Build established: Mutant 379 | -10/Materials | Discovered new exit (range 11) 1096 | -10/Materials | Discovered new exit (range 15) 1215 | -10/Materials | Discovered new exit (range 11) 1266 | -10/Materials | Learned Storage trap positions 1368 | -10/Materials | Learned 2 Storage zone layouts 1404 | -10/Materials | Learned location of Mines (-9) 1428 | -10/Materials | Identified exit to Mines 1428 | -10/Materials | Identified exit to Materials 1428 | -10/Materials | Identified exit to Subcaves 1452 | -10/Materials | Learned Storage security intel 1504 | -10/Materials | Learned Storage emergency access door positions 1609 | -10/Materials | Entered Mines 1617 | -10/Mines | Assisted by bots powering up and referring to "LRC-V3" 1811 | -10/Mines | Learned Materials non-interactive machine intel 1819 | -10/Mines | Learned Materials stockpile data 1833 | -10/Mines | Learned 2 Materials zone layouts 2087 | -10/Mines | Found the Drone Emporium 2094 | -10/Mines | Found Prototype Device 2094 | -10/Mines | Identified Thief Drone Bay 2279 | -10/Mines | Entered Materials 2279 | -9/Materials | Accompanied by 1 ally 2279 | -9/Materials | Evolved 2 slots: Propulsion x1, Utility x1 2280 | -9/Materials | Identified exit to Materials 2280 | -9/Materials | Identified exit to Mines 2283 | -9/Materials | Loaded intel: 50 non-interactive machine locations 2411 | -9/Materials | Entered Mines 2411 | -9/Mines | Accompanied by 1 ally 2418 | -9/Mines | Received a Rocket Launcher from a helpful Derelict 2636 | -9/Mines | Met a Derelict who couldn't figure out how to use a Trap Extractor 2949 | -9/Mines | Deemed a non-threat by the Exiles lab entrance 2949 | -9/Mines | Discovered new exit (range 5) 2954 | -9/Mines | Identified exit to Exiles 2955 | -9/Mines | Entered Exiles 2992 | -9/Exiles | Met 8R-AWN 3050 | -9/Exiles | Met EX-HEX 3118 | -9/Exiles | Met EX-BIN 3139 | -9/Exiles | Aligned with FarCom system 3140 | -9/Exiles | Given EX-Vault access code 3180 | -9/Exiles | Opened EX-Vault 3187 | -9/Exiles | Found Modified TNC 3220 | -9/Exiles | Warned to stay clear of 0b10 Research branches 3247 | -9/Exiles | Exiles lab attacked by MAIN.C 3281 | -9/Exiles | Learned location of Zion (-7) 3327 | -9/Exiles | Discovered new exit (range 14) 3347 | -9/Exiles | Identified exit to Mines 3348 | -9/Exiles | Left Exiles lab with Modified TNC 3348 | -9/Exiles | Entered Mines 3628 | -8/Mines | Discovered exit to Materials (range 13) 3647 | -8/Mines | Entered Materials 3647 | -8/Materials | Evolved 2 slots: Propulsion x1, Utility x1 3657 | -8/Materials | Build established: Skirmisher 4853 | -8/Materials | Discovered new exit (range 4) 4857 | -8/Materials | Identified exit to Factory 4948 | -8/Materials | Discovered new exit (range 11) 4953 | -8/Materials | Build established: Mutant 4955 | -8/Materials | Identified exit to Storage 5163 | -8/Materials | Discovered exit to Factory (range 8) 5886 | -8/Materials | Discovered exit to Storage (range 15) 5887 | -8/Materials | Destroyed 11 combat bots 5913 | -8/Materials | Lost 3 parts (1p1u1w) 6047 | -8/Materials | Core integrity fell below 50% 6056 | -8/Materials | Core integrity fell below 20% 6060 | -8/Materials | Destroyed by S-10 Pest with Light Assault Rifle Last Messages --------------- 06040_ Knocked back. 06041_ Connecting with Terminal... >>Trojan(Disrupt) Trojan loaded successfully. Testing... Disruption routine running. 06041_ ALERT: Suspicious activity at Terminal M009. Dispatching Investigation squad. 06044_ T-07 Excavator is excavating. 06047_ Imp. Signal Interpreter destroyed. 06047_ System corrupted by crushing effect (+2). 06047_ Knocked back. 06049_ The unstable cave ceiling collapses. 06050_ ,B>% H UMXCUZAW3XM 06052_ Slammed into C-17 Slicer. 06057_ W-25 Informer sends out distress signal. 06059_ C-17 Slicer knocked back. 06059_ S-10 Pest knocked back. 06059_ S-10 Pest system corrupted by crushing effect. Map ----- +----------------------------------------------------+ | | | | | ???????????#############?####?????????#??????????? | | ???????????# !!! ## # ??????T #??????#### | | ???????????# !!! ## # ?? #????? # | | ???????????# !! ## # #???? # | | ???????????# ## # """"" #??? # | | ???????????# ## # """"" #??? # | | ????????????? ! ??# # """"" #?? # | | ??????????????? ????# #? #? # | | ?????????????####+###???# #??? # # | | ?????????????# ##### #????# # # ?? | | ?????????????# ## # s####### ###????? | | ?????????????# s g #????? | | ?????????????# s gg ] T #????? | | ?????????????# ### # s ###### # ###????? | | ?????????????# #?### ##????### #?????? | | ?????????????########## c ???????# ######?????? | | ????????? w c ???????# #???????#### | | ????????? h ##??????# ##????### # | | ????????????+########### #?????## #????# | | ????????????????????????# ##?????# ==/###?## = # | | ????????????????????????# t #????## ! #?# = # | | ????????????????????????#c ##????## H ### | | ????????????????????????# #??????# = ### #### # | | ????????????????????????#@Y#?????# # # # ### | | ????????????????????????# #?????# # ### ##### # | | ???????????????????????? ????# # ###### ### | | ???????????????????????? #???## ! = # | | ??????????????????????? #????## g * = # | | ??????????????????????? #?##### ### ### # | | ??????????????????????## #?# #|[ ! # | | ???????????????????????###+###?# " " " ! !### |/ | | ???????????????????????????????# T """ + =### # | | ???????????????????????????????# " """ # #?# | | ???????????????????????????????# # #?# # | | ???????????????????????????????# ! """ # #?# # | | ???????????????????????????????# """ # #?# # | | ???????????????????????????????# ""? # #?# # | | ???????????????????????????????# * ??# #?# + | | ???????????????????????????????######???# #?## # | | ????????????????????????????????????????# #??# # | | #######?????????????????????????????????# #??# + | | #?????????????????????????????##### ##?# # | | #?????????????????????????????# #?# #[ | | " """ #????????????????????#????????# < #?# ## | | " """ #??########????????? #?????# #?# #? | | " """ #??#** !!#?????????""" #?????# #######+## | | #??#** =!!#????????"""" #?????# # | | #######??# #????????"""" #?????# # | +----------------------------------------------------+ Best States ------------- Heat Dissipation 31 Energy Generation 12 Energy Capacity 265 Matter Stores 300 Matter Capacity 300 Sight Range 16 Robot Scan Range 14 Terrain Scan Range 16 Terrain Scan Density 10 Evasion (%) 52 Recoil Reduction 4 Defensive Hacking 10 Item Schematics ----------------- None Robot Schematics ------------------ None Fabricated ------------ Nothing Alien Tech Used ----------------- None Achievements -------------- None Challenges ------------ None Game ------ Seed StorageMetaTearclaws Manual? 0 Play Time 00:36:26 Cumulative 33.5 hours Start 2024.09.22 @ 16:28:21 End 2024.09.22 @ 17:02:02 Sessions 1 Manual Loads 0 Difficulty Rogue Special Mode None Game No. 47 Rogue 47 Adventurer 0 Explorer 0 Win Type - Total 1 Types 1/0/0/0/0/0/0/0/0 Lore% 28 Gallery% 43 Achievement% 41 Wizard Run 0 Options --------- Layout 1 ASCII 0 Keyboard 0 Movement Mouse Keybinds 0 Fullscreen 1 Font 20/SmallcapsGlow Map View 54x42 Zoom Use 0% Tactical HUD 1 Map Filters NONE Filters NONE Steam 1 RUN: 27559325-cfac-4e6b-b4fc-edfbbbfa8b67